bitfinex/quotes_ETHUSD_20250628
["timestamp","ask_amount","ask_price","bid_price","bid_amount"]
[1751112882657,10.0,2428.1,2427.9,6.604]
[1751112886364,2.47188233,2427.3,2427.2,0.002]
[1751112886662,18.94627345,2427.3,2427.2,0.002]
[1751112886859,18.69908522,2427.3,2427.2,0.002]
[1751112888729,21.14956622,2427.3,2427.2,0.002]
[1751112892568,12.99878233,2427.3,2427.2,0.002]
[1751112899581,10.0,2427.3,2427.2,0.002]
[1751112900581,12.47188233,2427.3,2427.2,0.002]
[1751112900875,10.0,2427.3,2427.2,0.002]
[1751112905379,22.13757398,2427.3,2427.2,0.002]
[1751112905561,22.34317398,2427.3,2427.2,0.002]
[1751112906782,12.67748233,2427.3,2427.2,0.002]
[1751112907385,13.75438233,2427.3,2427.2,0.002]
[1751112907686,13.54908788,2427.0,2426.9,0.002]
[1751112907888,23.05184773,2427.0,2426.9,0.002]
[1751112910754,23.35880058,2427.0,2426.9,0.002]
[1751112911172,27.00416605,2427.0,2426.9,0.002]
[1751112917790,31.34216605,2427.0,2426.9,0.002]
[1751112917955,27.00416605,2427.0,2426.9,0.002]
[1751112920601,3.54929162,2426.8,2425.9,0.8326]
[1751112920760,21.90577739,2426.7,2425.7,0.8005]
[1751112921491,21.90577739,2426.7,2425.9,0.001]
[1751112923969,13.5494954,2426.6,2425.9,0.001]
[1751112924175,20.83320459,2426.6,2425.9,0.001]
[1751112933477,21.03342188,2426.6,2425.9,0.001]
[1751112933698,20.83320459,2426.6,2425.9,0.001]
[1751112933898,22.98479894,2426.6,2425.9,0.001]
[1751112934204,31.73697364,2426.6,2426.1,0.7889]
[1751112934876,32.26387364,2426.6,2426.1,0.7889]
[1751112937169,13.2282973,2426.5,2426.1,0.7889]
[1751112937996,2.47300305,2426.2,2426.1,0.7419]
[1751112938195,20.62378694,2426.2,2426.1,0.7419]
[1751112942908,10.0,2426.2,2426.1,0.7419]
[1751112943107,10.2056,2426.2,2426.1,0.7419]
[1751112946292,12.67860305,2426.2,2426.1,0.7419]
[1751112946483,20.82938694,2426.2,2426.1,0.7419]
[1751112949027,2.47320692,2426.0,2425.9,0.001]
[1751112949228,10.62399081,2426.0,2425.9,0.001]
[1751112950024,20.62399081,2426.0,2425.9,0.001]
[1751112954315,21.17399081,2426.0,2425.9,0.001]
[1751112954617,23.97252091,2426.0,2425.9,0.001]
[1751112955315,25.69652091,2426.0,2425.9,0.001]
[1751112956999,23.97252091,2426.0,2425.9,0.001]
[1751112957200,32.37452091,2426.0,2425.9,0.001]
[1751112971206,32.94842091,2426.0,2425.9,0.001]
[1751112972206,33.76882091,2426.0,2425.9,0.001]
[1751112980138,33.76882091,2426.0,2425.9,1.21e-06]
[1751112986238,2.47361477,2425.6,2425.5,0.001]
[1751112986421,10.82999866,2425.6,2425.5,0.001]
[1751112987339,2.47343368,2425.8,2425.5,0.7533]
[1751112987643,2.47343368,2425.8,2425.6,0.7523]
[1751112988027,10.6241495,2425.9,2425.6,0.7523]
[1751112988553,20.62429669,2425.7,2425.6,0.7523]
[1751112991244,2.47361477,2425.6,2425.5,0.001]
[1751112991959,20.62435424,2425.7,2425.5,0.001]
[1751112993451,10.0,2425.6,2425.5,0.001]
[1751112993935,12.47361477,2425.6,2425.5,0.001]
[1751112995860,13.83080942,2425.6,2425.5,0.001]
[1751112997445,14.03640942,2425.6,2425.5,0.001]
[1751112999946,15.16030942,2425.6,2425.5,0.001]
[1751113001158,15.00673426,2425.6,2425.5,0.001]
[1751113008677,2.4742268,2425.0,2424.9,0.001]
[1751113008847,20.62501069,2425.0,2424.9,0.001]
[1751113014588,23.60082562,2425.0,2424.9,0.001]
[1751113019265,30.25882562,2425.0,2424.9,0.001]
[1751113019889,30.83272562,2425.0,2424.9,0.001]
[1751113020273,31.38272562,2425.0,2424.9,0.001]
[1751113028612,42.81953316,2425.0,2424.9,0.001]
[1751113028907,42.81953316,2425.0,2424.2,0.4288]
[1751113028908,12.47494122,2424.3,2424.2,0.4288]
[1751113030921,2.47524752,2424.0,2423.9,0.001]
[1751113031073,18.19365129,2424.0,2423.9,0.001]
[1751113032675,20.64817121,2424.0,2423.9,0.001]
[1751113033611,10.0,2424.0,2423.9,0.001]
[1751113033811,10.0,2424.0,2423.9,0.761]
[1751113034832,12.47524752,2424.0,2423.9,0.761]
[1751113035017,20.64817121,2424.0,2423.9,0.761]
[1751113035420,18.17292369,2424.0,2423.9,0.761]
[1751113035797,20.64817121,2424.0,2423.9,0.761]
[1751113036200,18.17292369,2424.0,2423.9,0.761]
[1751113036389,20.64817121,2424.0,2423.9,0.761]
[1751113036584,10.2056,2424.0,2423.9,0.761]
[1751113036796,10.0,2424.0,2423.9,0.761]
[1751113039021,10.0,2424.0,2423.9,3.23634964]
[1751113039222,1.9086,2424.3,2424.0,0.8048]
[1751113039422,1.9086,2424.3,2424.1,0.8048]
[1751113039829,1.703,2424.3,2424.1,0.8048]
[1751113041425,1.703,2424.3,2424.2,0.7658]
[1751113041625,10.2056,2424.5,2424.2,0.7658]
[1751113042336,2.47483913,2424.4,2424.2,0.7658]
[1751113042518,10.0,2424.3,2424.2,0.7658]
[1751113049335,10.0,2424.3,2424.2,0.9714]
[1751113050197,8.17292369,2424.4,2424.2,1.56357291]
[1751113051218,20.08252369,2424.6,2424.2,4.03857431]
[1751113051934,20.08252369,2424.6,2424.3,0.7546]
[1751113052523,18.37852369,2424.6,2424.3,0.7546]
[1751113052723,18.17292369,2424.6,2424.3,2.47492867]
[1751113053037,11.704,2424.7,2424.4,0.7546]
[1751113053937,10.0,2424.7,2424.4,0.7546]
[1751113054105,10.0,2424.8,2424.5,0.7546]
[1751113054308,10.0,2424.8,2424.6,0.2056]
[1751113054827,12.47448649,2424.8,2424.6,0.2056]
[1751113055023,8.17292369,2424.7,2424.6,0.2056]
[1751113056639,8.17292369,2424.7,2424.5,0.7546]
[1751113056640,10.0,2424.6,2424.5,0.7546]
[1751113059739,8.17292369,2424.7,2424.5,0.7546]
[1751113066058,20.64746016,2424.7,2424.5,0.7546]
[1751113066549,10.0,2424.6,2424.5,0.7546]
[1751113069640,12.5568805,2424.9,2424.5,0.7546]
[1751113069840,10.0,2424.8,2424.5,3.5728203]
[1751113070047,10.0,2424.8,2424.7,0.7836]
[1751113071264,1.704,2424.9,2424.7,0.7836]
[1751113071442,1.704,2424.9,2424.7,0.9892]
[1751113073262,11.704,2424.9,2424.7,0.9892]
[1751113073563,1.704,2424.9,2424.7,0.9892]
[1751113073865,10.0,2425.0,2424.7,0.9892]
[1751113074238,8.17292369,2424.8,2424.7,0.9892]
[1751113074565,8.17292369,2424.8,2424.7,0.2056]
[1751113078474,18.17292369,2425.0,2424.8,0.7876]
[1751113081886,0.2056,2425.2,2424.8,1.13437259]
[1751113082086,0.2056,2425.2,2424.9,0.2056]
[1751113082575,10.2056,2425.2,2424.9,0.2056]
[1751113082772,10.0,2425.2,2424.9,0.2056]
[1751113084271,8.17292369,2425.1,2424.9,0.2056]
[1751113090585,8.17292369,2425.1,2424.9,2.67992793]
[1751113093489,8.17492369,2425.3,2425.0,0.7649]
[1751113093712,18.17492369,2425.3,2425.2,0.2056]
[1751113094358,20.64884444,2425.3,2425.2,0.2056]
[1751113094555,18.17492369,2425.3,2425.2,0.2056]
[1751113096700,10.002,2425.3,2425.2,0.2056]
[1751113106029,12.47592075,2425.3,2425.2,0.2056]
[1751113107996,12.47592075,2425.3,2424.8,3.26777215]
[1751113108199,12.47592075,2425.3,2425.0,0.2056]
[1751113108401,2.47404534,2425.2,2425.0,0.2056]
[1751113108600,2.47404534,2425.2,2424.6,0.7934]
[1751113108601,12.47418265,2425.1,2424.6,0.7934]
[1751113108813,12.47418265,2425.1,2424.8,0.2056]
[1751113109008,2.47424143,2425.0,2424.8,0.2056]
[1751113110122,2.4742268,2425.0,2424.8,0.2056]
[1751113110498,2.47415886,2425.1,2424.8,0.2056]
[1751113110697,2.47422853,2425.0,2424.8,0.2056]
[1751113112997,2.47432883,2424.9,2424.8,0.2056]
[1751113113642,2.47458777,2424.7,2424.2,2.47499763]
[1751113113958,2.47466528,2424.6,2424.4,0.2056]
[1751113114097,2.47457658,2424.7,2424.4,0.2056]
[1751113115999,2.68007653,2424.8,2424.4,0.2056]
[1751113118131,2.4745421,2424.7,2424.4,0.2056]
[1751113118430,2.6800817,2424.8,2424.4,0.2056]
[1751113119244,2.4745783,2424.7,2424.4,0.2056]
[1751113120336,2.68007878,2424.8,2424.4,0.2056]
[1751113120632,2.47454268,2424.7,2424.4,0.2056]
[1751113121256,2.68008753,2424.8,2424.4,0.2056]
[1751113122635,2.68007621,2424.8,2424.4,0.2056]
[1751113123218,12.47458022,2424.7,2424.4,0.2056]
[1751113133548,10.0,2424.7,2424.4,0.2056]
[1751113134978,10.0,2424.7,2424.4,0.55149349]
[1751113135147,10.0,2424.7,2424.5,0.7749]
[1751113135614,10.0,2424.7,2424.5,3.24963425]
[1751113135814,2.47433158,2424.9,2424.6,0.2056]
[1751113139139,10.2056,2425.0,2424.7,0.7624]
[1751113139140,10.0,2425.0,2424.7,0.7624]
[1751113139384,10.0,2425.0,2424.7,0.968]
[1751113140188,10.0,2425.0,2424.7,3.4425294]
[1751113140341,10.0,2425.0,2424.7,0.968]
[1751113141273,12.47423749,2425.0,2424.7,0.968]
[1751113143775,14.17015224,2425.1,2424.7,0.968]
[1751113143951,2.47423248,2425.0,2424.7,0.968]
[1751113144374,14.17018088,2425.1,2424.7,0.968]
[1751113144880,11.696,2425.1,2424.7,3.44253245]
[1751113145192,11.696,2425.1,2424.9,0.2056]
[1751113147751,10.0,2425.2,2424.9,0.2056]
[1751113147952,10.0,2425.2,2425.0,0.778]
[1751113148764,2.47402513,2425.2,2425.0,0.778]
[1751113149471,2.47402497,2425.2,2425.0,0.778]
[1751113152186,12.68157098,2425.3,2425.0,0.778]
[1751113152553,12.68158142,2425.3,2425.0,0.778]
[1751113152957,2.47403214,2425.2,2425.0,0.778]
[1751113153355,0.2076,2425.3,2425.0,0.778]
[1751113154393,2.68153483,2425.3,2425.0,0.778]
[1751113155082,2.47593483,2425.3,2425.0,0.778]
[1751113155287,2.47593483,2425.3,2425.0,0.9836]
[1751113155588,0.002,2425.3,2425.0,0.9836]
[1751113157591,2.47593067,2425.3,2425.0,0.9836]
[1751113158091,0.002,2425.3,2425.0,0.9836]
[1751113160775,0.002,2425.3,2425.0,3.45781944]
[1751113161161,0.002,2425.3,2425.0,0.9836]
[1751113161363,0.002,2425.3,2425.0,3.45781816]
[1751113161562,0.002,2425.3,2425.0,4.05103849]
[1751113161782,0.002,2425.3,2425.0,3.45781816]
[1751113162160,0.002,2425.3,2425.1,2.47411512]
[1751113162563,0.002,2425.3,2425.2,0.2056]
[1751113162960,0.002,2425.3,2425.2,0.9852]
[1751113172112,0.002,2425.3,2425.2,3.45922276]
[1751113172273,0.002,2425.3,2425.2,4.05256469]
[1751113172466,0.002,2425.3,2425.2,1.57854193]
[1751113172666,0.002,2425.3,2425.2,0.9852]
[1751113175404,0.002,2425.3,2425.2,0.2056]
[1751113190214,0.002,2425.3,2425.2,2.67962276]
[1751113190511,0.002,2425.3,2425.2,0.2056]
[1751113208501,0.002,2425.3,2425.2,2.67962276]
[1751113208939,0.002,2425.3,2425.2,0.2056]
[1751113211206,0.002,2425.3,2425.2,2.67962276]
[1751113213039,0.002,2425.3,2425.2,0.2056]
[1751113220963,0.002,2425.3,2425.2,6.8416]
[1751113230767,0.002,2425.3,2425.2,9.31562276]
[1751113231461,0.002,2425.3,2425.2,10.57096224]
[1751113244071,0.002,2425.3,2425.2,1.46093948]
[1751113244269,2.47592075,2425.3,2424.8,3.2360596]
[1751113244581,2.47403248,2425.2,2425.0,0.2056]
[1751113244780,2.47597807,2425.3,2425.1,6.634]
[1751113245181,2.47597807,2425.3,2425.0,0.2056]
[1751113245383,2.47597807,2425.3,2425.1,6.634]
[1751113246801,0.002,2425.3,2425.1,6.634]
[1751113247513,2.47592788,2425.3,2425.1,6.634]
[1751113248193,2.47402276,2425.2,2425.1,6.634]
[1751113248394,2.47597731,2425.3,2425.1,6.634]
[1751113249587,2.47597731,2425.3,2425.0,0.2056]
[1751113249771,2.47597731,2425.3,2425.1,6.634]
[1751113251182,4.06840994,2425.3,2425.1,6.634]
[1751113253210,2.47402276,2425.2,2425.0,0.2056]
[1751113253414,0.784,2425.1,2425.0,6.8396]
[1751113254190,0.784,2425.1,2425.0,0.2056]
[1751113254395,0.784,2425.1,2425.0,6.8396]
[1751113255313,2.47402276,2425.2,2425.0,6.8396]
[1751113255685,2.47402276,2425.2,2425.0,6.634]
[1751113255686,2.4740803,2425.2,2425.0,6.634]
[1751113256187,2.4740803,2425.2,2424.8,2.68003064]
[1751113256389,2.4740803,2425.2,2424.9,6.634]
[1751113256920,2.4740803,2425.2,2425.0,6.634]
[1751113257719,2.4740803,2425.2,2424.8,2.68003064]
[1751113257885,2.4740803,2425.2,2424.8,0.2056]
[1751113258087,2.4740803,2425.2,2424.9,6.634]
[1751113260621,3.46557463,2425.3,2424.9,6.634]
[1751113260988,3.46557463,2425.3,2424.9,9.10832847]
[1751113262727,3.46557463,2425.3,2424.9,6.634]
[1751113263427,3.46557463,2425.3,2424.9,9.10832694]
[1751113265027,3.46557463,2425.3,2424.9,6.634]
[1751113266418,2.47404797,2425.2,2425.0,6.634]
[1751113268026,2.47413643,2425.1,2424.8,0.2056]
[1751113268233,2.47413643,2425.1,2425.0,6.634]
[1751113268393,2.47407529,2425.2,2425.0,6.634]
[1751113270214,2.47407529,2425.2,2424.8,0.2056]
[1751113270421,2.47413478,2425.1,2424.9,6.634]
[1751113271832,2.47413478,2425.1,2424.8,0.2056]
[1751113272033,2.47413478,2425.1,2424.9,6.633]
[1751113272228,2.47413478,2425.1,2424.8,0.2056]
[1751113272432,2.47413478,2425.1,2424.9,6.633]
[1751113273535,2.47413478,2425.1,2424.8,0.2056]
[1751113273733,2.47413478,2425.1,2424.9,6.634]
[1751113274836,12.47409999,2425.2,2424.9,6.634]
[1751113275529,12.47409999,2425.2,2424.8,0.2056]
[1751113275735,2.47412602,2425.1,2424.8,6.8396]
[1751113276305,12.47412602,2425.1,2424.8,6.8396]
[1751113276507,12.47412602,2425.1,2424.8,6.8386]
[1751113276508,2.47412602,2425.1,2424.8,6.8386]
[1751113276804,2.47412602,2425.1,2424.8,0.2056]
[1751113277005,2.47412602,2425.1,2424.8,6.8386]
[1751113278437,2.47423188,2425.0,2424.8,6.8386]
[1751113279013,2.47417821,2425.1,2424.8,6.8386]
[1751113279427,0.779,2425.1,2424.5,2.47468414]
[1751113279616,2.47432508,2425.0,2424.7,0.2056]
[1751113279820,2.47433646,2424.9,2424.7,0.2056]
[1751113285745,12.47427965,2425.0,2424.7,0.2056]
[1751113293049,0.2056,2425.1,2424.7,1.0047]
[1751113293230,2.67976717,2425.1,2424.7,3.47922256]
[1751113293430,10.0,2425.0,2424.7,1.0047]
[1751113293948,10.0,2425.0,2424.7,3.47923186]
[1751113295354,10.0,2425.0,2424.8,0.7991]
[1751113295949,10.0,2425.1,2424.8,0.7991]
[1751113296119,10.0,2425.1,2424.8,1.0047]
[1751113302953,2.47412834,2425.1,2424.8,1.0047]
[1751113305453,2.67966523,2425.2,2424.8,3.27350068]
[1751113305754,2.47406523,2425.2,2425.0,0.2056]
[1751113309434,2.47412477,2425.1,2425.0,0.2056]
[1751113310063,2.47408185,2425.2,2425.0,0.2056]
[1751113313761,2.47412477,2425.1,2425.0,0.2056]
[1751113315267,2.47408063,2425.2,2425.0,0.2056]
[1751113316146,0.002,2425.3,2425.1,0.8014]
[1751113319368,0.002,2425.3,2425.1,1.14952786]
[1751113319571,0.002,2425.3,2425.2,0.2056]
[1751113339701,0.002,2425.3,2425.2,2.67962276]
[1751113340394,0.002,2425.3,2425.2,0.2056]
[1751113352117,2.47592075,2425.3,2425.2,0.2056]
[1751113352800,0.002,2425.3,2425.2,0.2056]
[1751113353107,2.47592075,2425.3,2425.2,0.2056]
[1751113357189,2.47592075,2425.3,2424.8,2.47437244]
[1751113357190,12.57850448,2425.3,2424.8,0.2056]
[1751113357500,2.47432969,2424.9,2424.8,0.2056]
[1751113362690,2.47424442,2425.0,2424.5,7.436]
[1751113362691,2.47455912,2424.7,2424.5,7.436]
[1751113362890,2.47455912,2424.7,2424.6,0.2056]
[1751113365117,2.47447195,2424.8,2424.6,0.2056]
[1751113365494,2.47432883,2424.9,2424.6,0.2056]
[1751113365818,2.47453293,2424.7,2424.6,0.2056]
[1751113366515,2.47448113,2424.8,2424.6,0.2056]
[1751113366719,0.8019,2425.0,2424.6,0.2056]
[1751113367028,3.28903293,2424.7,2424.3,0.8036]
[1751113367225,3.28903293,2424.7,2424.4,0.2056]
[1751113367226,2.47473705,2424.5,2424.4,0.2056]
[1751113368011,2.4746815,2424.6,2424.4,0.2056]
[1751113368532,2.47473705,2424.5,2424.4,0.2056]
[1751113368731,2.47469149,2424.6,2424.4,0.2056]
[1751113369037,12.47473705,2424.5,2424.4,0.2056]
[1751113369205,2.47486258,2424.4,2424.1,0.7639]
[1751113369523,2.47479445,2424.5,2424.2,6.8346]
[1751113370702,2.4748414,2424.4,2424.2,6.8346]
[1751113371928,12.47478203,2424.5,2424.2,6.8346]
[1751113373131,2.4748473,2424.4,2424.2,0.2056]
[1751113373327,2.4748473,2424.4,2424.2,6.8346]
[1751113374037,10.0,2424.5,2424.2,6.8346]
[1751113375130,2.47474091,2424.5,2424.2,6.8346]
[1751113380351,12.47474091,2424.5,2424.2,6.8346]
[1751113381505,10.0,2424.5,2424.2,6.8346]
[1751113382756,10.0,2424.5,2424.3,0.8116]
[1751113382939,12.47459093,2424.7,2424.4,0.2056]
[1751113385115,12.47453909,2424.7,2424.4,0.2056]
[1751113385641,2.47463502,2424.6,2424.4,0.2056]
[1751113386526,12.47458087,2424.7,2424.4,0.2056]
[1751113387537,2.4746392,2424.6,2424.4,0.2056]
[1751113388546,12.47458258,2424.7,2424.4,0.2056]
[1751113391817,2.47453468,2424.7,2424.4,0.2056]
[1751113392016,2.47453468,2424.7,2424.5,0.8187]
[1751113392236,10.0,2424.7,2424.5,0.8187]
[1751113392438,12.47449137,2424.8,2424.6,0.2056]
[1751113392641,12.47453293,2424.7,2424.6,0.2056]
[1751113392848,2.47453293,2424.7,2424.6,0.2056]
[1751113396051,10.0,2424.9,2424.6,0.2056]
[1751113396232,12.47433339,2424.9,2424.6,0.2056]
[1751113396621,2.47426828,2425.0,2424.5,3.2934198]
[1751113396820,2.47433451,2424.9,2424.7,0.2056]
[1751113397024,12.47425605,2425.0,2424.7,1.0309]
[1751113399865,2.4743377,2424.9,2424.7,1.0309]
[1751113400173,2.47427047,2425.0,2424.7,0.8253]
[1751113400462,2.47427047,2425.0,2424.9,0.2056]
[1751113401150,3.96911145,2425.0,2424.9,0.2056]
[1751113401350,4.73981145,2425.0,2424.9,0.2056]
[1751113401570,2.47442411,2424.9,2424.7,0.2056]
[1751113402025,2.47443088,2424.8,2424.7,0.2056]
[1751113402760,2.47437881,2424.9,2424.7,0.2056]
[1751113403923,2.474227,2425.0,2424.7,0.2056]
[1751113404127,12.474227,2425.0,2424.7,0.2056]
[1751113405061,12.47434222,2424.9,2424.7,0.2056]
[1751113405663,2.47434222,2424.9,2424.7,0.2056]
[1751113405958,12.47426848,2425.0,2424.8,0.782]
[1751113406146,12.47426848,2425.0,2424.8,0.9876]
[1751113407730,2.47412477,2425.1,2424.8,0.9876]
[1751113408627,2.47406754,2425.2,2424.8,1.12821146]
[1751113408956,12.47406754,2425.2,2425.0,0.2056]
[1751113409133,12.47407024,2425.2,2425.0,0.2056]
[1751113419281,2.47412477,2425.1,2425.0,0.2056]
[1751113419877,2.47412477,2425.1,2425.0,1.0226]
[1751113420067,12.47407799,2425.2,2425.0,1.0226]
[1751113420310,2.47412477,2425.1,2425.0,1.0226]
[1751113422040,12.47409423,2425.2,2425.0,1.0226]
[1751113422238,2.47412477,2425.1,2425.0,1.0226]
[1751113422866,2.47410497,2425.2,2425.0,1.0226]
[1751113423175,2.47412477,2425.1,2425.0,1.0226]
[1751113424987,2.4740818,2425.2,2425.0,1.0226]
[1751113425347,2.47412477,2425.1,2425.0,1.0226]
[1751113425980,12.47597881,2425.3,2425.0,1.0226]
[1751113425981,2.47406415,2425.2,2425.0,1.0226]
[1751113426185,2.47412477,2425.1,2425.0,1.0226]
[1751113427383,2.47406015,2425.2,2425.0,1.0226]
[1751113428255,2.47412477,2425.1,2425.0,1.0226]
[1751113434754,2.47407987,2425.2,2425.0,1.0226]
[1751113435093,2.47409146,2425.2,2425.0,1.0226]
[1751113435498,12.47412477,2425.1,2425.0,1.0226]
[1751113435672,2.47412477,2425.1,2425.0,1.0226]
[1751113440606,2.47404347,2425.2,2425.0,1.0226]
[1751113444216,10.002,2425.3,2425.0,1.0226]
[1751113444512,0.002,2425.3,2425.1,0.2056]
[1751113444882,0.002,2425.3,2425.2,0.8034]
[1751113445511,119.66658668,2425.6,2425.5,2.47371675]
[1751113445708,119.66658668,2425.6,2425.5,11.59911675]
[1751113446711,119.66658668,2425.6,2425.5,0.8034]
[1751113446893,119.66658668,2425.6,2425.5,9.1284]
[1751113447092,119.66658668,2425.6,2425.5,10.53600765]
[1751113447296,119.66658668,2425.6,2425.5,13.0097244]
[1751113448981,119.66658668,2425.6,2425.5,4.6847244]
[1751113449214,119.66658668,2425.6,2425.5,9.91511675]
[1751113449595,119.66658668,2425.6,2425.5,3.27711675]
[1751113449898,119.66658668,2425.6,2425.5,9.91511675]
[1751113451422,119.66658668,2425.6,2425.5,3.27711675]
[1751113451599,119.66658668,2425.6,2425.5,9.91411675]
[1751113451797,119.66658668,2425.6,2425.5,4.68511016]
[1751113452022,119.66658668,2425.6,2425.5,9.91411675]
[1751113454308,119.66658668,2425.6,2425.5,9.91211675]
[1751113455337,119.66658668,2425.6,2425.5,3.27711675]
[1751113455519,119.66658668,2425.6,2425.5,9.91211675]
[1751113455724,119.66658668,2425.6,2425.5,10.11771675]
[1751113456023,119.66658668,2425.6,2425.5,11.54607016]
[1751113470031,119.66658668,2425.6,2425.5,2.67931675]
[1751113470218,119.66658668,2425.6,2425.5,11.00231675]
[1751113471121,119.66658668,2425.6,2425.5,0.2056]
[1751113471303,119.66658668,2425.6,2425.5,6.8366]
[1751113473604,119.66658668,2425.6,2425.5,6.8376]
[1751113475838,119.66658668,2425.6,2425.5,0.2056]
[1751113476139,119.66658668,2425.6,2425.5,6.8366]
[1751113478635,119.66658668,2425.6,2425.5,0.2056]
[1751113478840,0.8041,2425.5,2425.0,2.47413122]
[1751113479033,0.8041,2425.5,2425.2,0.2056]
[1751113479643,3.27783517,2425.5,2425.3,6.633]
[1751113479840,3.27783517,2425.5,2425.2,0.2056]
[1751113480045,3.27783517,2425.5,2425.3,6.633]
[1751113480217,7.29115941,2425.5,2425.2,0.2056]
[1751113480540,17.29115941,2425.5,2425.4,6.633]
[1751113480740,14.81742424,2425.5,2425.4,6.633]
[1751113482807,17.29114099,2425.5,2425.4,6.633]
[1751113483340,17.29114099,2425.5,2425.2,0.2056]
[1751113483542,0.8159,2425.3,2425.2,0.2056]
[1751113483745,0.8159,2425.3,2425.2,6.8386]
[1751113485257,0.8159,2425.3,2425.2,0.2056]
[1751113485412,0.8159,2425.3,2425.2,6.8386]
[1751113486147,0.8159,2425.3,2425.2,0.2056]
[1751113486646,0.8159,2425.3,2425.2,6.8386]
[1751113488248,0.8159,2425.3,2425.2,0.2056]
[1751113488550,0.8159,2425.3,2425.2,6.8376]
[1751113489641,0.8159,2425.3,2425.2,0.2056]
[1751113489830,0.8159,2425.3,2425.2,6.8376]
[1751113490448,0.8159,2425.3,2425.2,0.2056]
[1751113490748,0.8159,2425.3,2425.2,6.8376]
[1751113494545,3.28982075,2425.3,2425.2,0.2056]
[1751113494748,4.86616749,2425.3,2425.1,6.631]
[1751113495215,3.28982075,2425.3,2425.1,6.631]
[1751113496950,0.8159,2425.3,2425.1,6.631]
[1751113499957,0.8159,2425.3,2425.1,6.63]
[1751113503261,10.2056,2425.5,2425.1,7.4245]
[1751113503449,122.14022766,2425.6,2425.1,7.4245]
[1751113503756,119.66658668,2425.6,2425.2,2.4740105]
[1751113505655,122.14021778,2425.6,2425.2,2.4740105]
[1751113506162,122.14021778,2425.6,2425.1,10.64100578]
[1751113508254,122.14021778,2425.6,2425.2,2.47402221]
[1751113509035,122.14021778,2425.6,2425.1,10.64103101]
[1751113509564,10.0,2425.5,2424.8,2.47441588]
[1751113509768,2.4738679,2425.4,2424.9,11.55058581]
[1751113509937,2.4738679,2425.4,2425.0,2.47422531]
[1751113510435,2.4738679,2425.4,2424.9,11.55056899]
[1751113510635,2.4738679,2425.4,2425.0,2.4742253]
[1751113511072,2.4738679,2425.4,2425.1,6.635]
[1751113513338,2.4738679,2425.4,2425.2,6.8406]
[1751113513670,2.4738679,2425.4,2425.2,0.2056]
[1751113514166,2.4738679,2425.4,2425.2,6.8396]
[1751113514487,12.4737738,2425.5,2425.2,6.8396]
[1751113514643,12.4737738,2425.5,2425.2,0.2056]
[1751113514843,12.4737738,2425.5,2425.2,6.8396]
[1751113516674,12.4737738,2425.5,2425.2,0.2056]
[1751113516875,12.4737738,2425.5,2425.2,6.8396]
[1751113517472,12.4737738,2425.5,2425.2,0.2056]
[1751113517648,12.4737738,2425.5,2425.2,6.8386]
[1751113518246,10.0,2425.5,2425.2,6.8386]
[1751113518776,10.0,2425.5,2425.2,7.5964]
[1751113521288,10.0,2425.5,2425.2,10.07040719]
[1751113521998,10.0,2425.5,2425.2,3.43740719]
[1751113522387,10.0,2425.5,2425.3,6.632]
[1751113525423,10.0,2425.5,2425.4,0.2056]
[1751113537710,12.47371675,2425.5,2425.4,0.2056]
[1751113549839,16.48704099,2425.5,2425.4,0.17566]
[1751113551755,2.4738495,2425.4,2425.1,6.627]
[1751113551961,2.4738495,2425.4,2425.2,0.2056]
[1751113552758,10.0,2425.5,2425.2,0.2056]
[1751113553058,12.47377394,2425.5,2425.2,0.2056]
[1751113553228,16.48709818,2425.5,2425.2,0.2056]
[1751113554448,2.47382101,2425.4,2425.2,0.2056]
[1751113554649,16.4870878,2425.5,2425.2,0.2056]
[1751113556156,2.47382756,2425.4,2425.2,0.2056]
[1751113566059,16.48708875,2425.5,2425.2,0.2056]
[1751113566372,12.47392075,2425.3,2424.7,9.10147372]
[1751113566545,2.4741282,2425.1,2425.0,0.2056]
[1751113567546,2.4743044,2425.0,2424.6,9.1066]
[1751113567845,12.4743044,2425.0,2424.8,0.2056]
[1751113568457,2.4743044,2425.0,2424.8,0.2056]
[1751113571762,13.27336979,2425.1,2424.8,0.2056]
[1751113572364,12.47416979,2425.1,2424.8,0.2056]
[1751113573168,10.0,2425.1,2424.9,0.7642]
[1751113573368,12.47397743,2425.3,2424.9,0.9698]
[1751113573676,10.0,2425.4,2425.0,2.47417335]
[1751113573882,10.0,2425.4,2425.1,0.9698]
[1751113577053,2.47382037,2425.4,2425.1,0.9698]
[1751113578381,12.47377092,2425.5,2425.1,0.7642]
[1751113578585,12.47377092,2425.5,2425.3,0.2056]
[1751113578779,16.48709516,2425.5,2425.3,0.2056]
[1751113578985,14.01332424,2425.5,2425.3,0.2056]
[1751113579286,16.48704699,2425.5,2425.3,0.2056]
[1751113579459,14.01332424,2425.5,2425.3,0.2056]
[1751113580078,10.0,2425.5,2425.3,0.2056]
[1751113580662,10.0,2425.5,2425.4,0.8274]
[1751113581382,119.66658668,2425.6,2425.4,3.30120665]
[1751113581581,119.66658668,2425.6,2425.4,3.50680665]
[1751113581788,119.66658668,2425.6,2425.4,1.033]
[1751113582165,119.66658668,2425.6,2425.4,3.50680827]
[1751113583156,119.66658668,2425.6,2425.5,2.47371675]
[1751113583359,119.66658668,2425.6,2425.4,1.033]
[1751113583784,119.66658668,2425.6,2425.5,2.47371675]
[1751113584396,119.66658668,2425.6,2425.5,2.67931675]
[1751113586990,119.66658668,2425.6,2425.5,3.44901675]
[1751113587155,119.66658668,2425.6,2425.5,4.04129823]
[1751113588757,119.66658668,2425.6,2425.5,5.74129823]
[1751113597211,119.66658668,2425.6,2425.5,1.9056]
[1751113597416,119.66658668,2425.6,2425.5,12.69931675]
[1751113600114,119.66658668,2425.6,2425.5,6.06431675]